bitfinex-derivatives/quotes_SOLF0:USTF0_20260302
["timestamp","ask_amount","ask_price","bid_price","bid_amount"]
[1772468661581,43.24099569,89.772,89.677,41.58071853]
[1772468661776,43.24099569,89.772,89.631,41.58071853]
[1772468661978,43.24099569,89.772,89.659,1.93966418]
[1772468662378,43.24099569,89.755,89.69,10.034]
[1772468662777,43.24099569,89.755,89.7,10.033]
[1772468662979,43.24099569,89.755,89.659,1.93966418]
[1772468662980,43.24099569,89.755,89.681,41.58071853]
[1772468663477,43.24099569,89.755,89.659,1.93966418]
[1772468663478,10.028,89.744,89.673,10.036]
[1772468663673,43.24099569,89.743,89.659,43.52038271]
[1772468664377,43.24099569,89.743,89.699,10.033]
[1772468665075,43.24099569,89.743,89.689,10.034]
[1772468665275,43.24099569,89.743,89.661,41.58071853]
[1772468665483,43.24099569,89.769,89.671,41.58071853]
[1772468665882,7.57254197,89.79,89.671,41.58071853]
[1772468666073,43.24099569,89.791,89.712,41.58071853]
[1772468666985,10.023,89.79,89.712,41.58071853]
[1772468667683,331.43264659,89.84,89.672,156.118]
[1772468667684,43.24099569,89.815,89.731,41.58071853]
[1772468668081,10.02,89.813,89.75,10.027]
[1772468668274,43.24099569,89.815,89.75,10.027]
[1772468668677,7.57254197,89.83,89.731,41.58071853]
[1772468668678,43.24099569,89.814,89.731,41.58071853]
[1772468670384,53.26099569,89.814,89.755,10.026]
[1772468670779,43.24099569,89.814,89.731,41.58071853]
[1772468671180,43.24099569,89.839,89.734,41.58071853]
[1772468671380,43.24099569,89.864,89.771,41.58071853]
[1772468671881,43.24099569,89.854,89.771,41.58071853]
[1772468672082,43.24099569,89.844,89.787,10.023]
[1772468672279,43.24099569,89.844,89.771,41.58071853]
[1772468672682,43.24099569,89.844,89.788,10.023]
[1772468672981,43.24099569,89.844,89.771,41.58071853]
[1772468673190,43.24099569,89.866,89.771,41.58071853]
[1772468673383,43.24099569,89.866,89.781,41.58071853]
[1772468673781,10.012,89.885,89.822,10.019]
[1772468675589,43.24099569,89.889,89.803,41.58071853]
[1772468675990,43.24099569,89.865,89.78,41.58071853]
[1772468676189,20.02,89.907,89.76,7.56168662]
[1772468676190,43.24099569,89.859,89.76,7.56168662]
[1772468676584,43.24099569,89.836,89.755,41.58071853]
[1772468676986,43.24099569,89.836,89.765,10.025]
[1772468677392,43.24099569,89.836,89.755,41.58071853]
[1772468677690,10.018,89.834,89.755,41.58071853]
[1772468677891,43.24099569,89.836,89.755,41.58071853]
[1772468678290,10.018,89.834,89.769,10.025]
[1772468678589,43.24099569,89.836,89.761,41.58071853]
[1772468679183,43.24099569,89.859,89.761,41.58071853]
[1772468679384,43.24099569,89.859,89.781,41.58071853]
[1772468681191,10.015,89.858,89.793,10.022]
[1772468681393,10.015,89.858,89.759,20.053]
[1772468681394,43.24099569,89.881,89.791,41.58071853]
[1772468682088,43.24099569,89.863,89.805,10.021]
[1772468682388,43.24099569,89.863,89.769,465.8616336]
[1772468682587,43.24099569,89.863,89.77,41.58071853]
[1772468683290,10.017,89.843,89.784,10.023]
[1772468684287,43.24099569,89.863,89.77,41.58071853]
[1772468684487,43.24099569,89.835,89.769,465.8616336]
[1772468684989,7.56168662,89.84,89.73,7.56168662]
[1772468684990,43.24099569,89.818,89.73,7.56168662]
[1772468685190,43.24099569,89.818,89.727,41.58071853]
[1772468685691,43.24099569,89.805,89.751,10.027]
[1772468685893,43.24099569,89.805,89.727,41.58071853]
[1772468686391,7.56168662,89.84,89.731,41.58071853]
[1772468686593,43.24099569,89.839,89.731,41.58071853]
[1772468686994,10.019,89.825,89.771,10.025]
[1772468687290,43.24099569,89.825,89.733,41.80853411]
[1772468687590,10.024,89.782,89.723,10.03]
[1772468687789,41.6084248,89.784,89.711,41.80853411]
[1772468688294,41.6084248,89.811,89.749,10.027]
[1772468688788,41.6084248,89.811,89.711,41.80853411]
[1772468688995,41.6084248,89.811,89.717,51.63907124]
[1772468689197,41.6084248,89.811,89.717,41.80853411]
[1772468690295,41.6084248,89.792,89.717,41.80853411]
[1772468690497,41.6084248,89.792,89.711,41.80853411]
[1772468690892,10.024,89.781,89.716,10.031]
[1772468691093,41.6084248,89.792,89.711,41.80853411]
[1772468691599,7.56168662,89.78,89.71,467.06879943]
[1772468691793,41.6084248,89.779,89.71,467.06879943]
[1772468692298,41.6084248,89.761,89.71,467.06879943]
[1772468692896,11.14,89.842,89.71,467.06879943]
[1772468692897,41.6084248,89.795,89.711,41.80853411]
[1772468693198,10.028,89.739,89.675,10.035]
[1772468693400,41.6084248,89.746,89.668,41.80853411]
[1772468693997,41.6084248,89.769,89.671,41.80853411]
[1772468694293,41.6084248,89.769,89.647,20.078]
[1772468694294,41.6084248,89.815,89.755,10.026]
[1772468694499,41.6084248,89.815,89.721,41.80853411]
[1772468694895,10.022,89.797,89.732,10.029]
[1772468695093,41.6084248,89.815,89.721,41.80853411]
[1772468696091,51.6284248,89.813,89.75,10.027]
[1772468696296,41.6084248,89.813,89.721,41.80853411]
[1772468696598,41.6084248,89.813,89.743,41.80853411]
[1772468697198,41.6084248,89.813,89.764,10.025]
[1772468697392,41.6084248,89.813,89.743,41.80853411]
[1772468698200,41.6084248,89.813,89.755,10.026]
[1772468700403,41.6084248,89.813,89.743,41.80853411]
[1772468700698,41.6084248,89.813,89.72,41.80853411]
[1772468701100,41.6084248,89.794,89.699,41.80853411]
[1772468701696,41.6084248,89.819,89.712,9.83053713]
[1772468701895,41.6084248,89.819,89.753,10.027]
[1772468702102,10.021,89.809,89.713,41.80853411]
[1772468702503,41.6084248,89.819,89.753,10.027]
[1772468702709,10.02,89.809,89.753,10.027]
[1772468702899,41.6084248,89.808,89.733,41.80853411]
[1772468703109,7.56168662,89.84,89.71,7.56168662]
[1772468703110,41.6084248,89.799,89.71,41.80853411]
[1772468703401,41.6084248,89.799,89.665,20.074]
[1772468703402,41.6084248,89.755,89.666,41.80853411]
[1772468703600,41.6084248,89.755,89.674,10.035]
[1772468703808,10.028,89.743,89.666,41.80853411]
[1772468704006,41.6084248,89.755,89.666,41.80853411]
[1772468704202,41.6084248,89.755,89.699,10.033]
[1772468704406,41.6084248,89.755,89.666,41.80853411]
[1772468704603,41.6084248,89.755,89.649,1.94006428]
[1772468704604,41.6084248,89.755,89.715,10.031]
[1772468704810,41.6084248,89.779,89.693,41.80853411]
[1772468705812,41.6084248,89.779,89.711,10.031]
[1772468706113,41.6084248,89.779,89.693,41.80853411]
[1772468706410,10.026,89.759,89.698,10.033]
[1772468706609,51.6344248,89.759,89.698,10.033]
[1772468706810,51.6344248,89.759,89.65,7.56168662]
[1772468706811,41.6084248,89.759,89.672,41.80853411]
[1772468707901,41.6084248,89.781,89.672,41.80853411]
[1772468708102,10.024,89.78,89.721,10.03]
[1772468708506,41.6084248,89.781,89.7,41.80853411]
[1772468708702,41.6084248,89.781,89.738,10.028]
[1772468708902,41.6084248,89.781,89.7,41.80853411]
[1772468709408,155.86,89.822,89.701,10.032]
[1772468709409,41.6084248,89.779,89.701,10.032]
[1772468710209,41.6084248,89.779,89.7,41.80853411]
[1772468710605,41.6084248,89.779,89.691,10.034]
[1772468711314,41.6084248,89.752,89.699,10.033]
[1772468711811,41.6084248,89.752,89.677,41.80853411]
[1772468712223,11.14,89.812,89.689,10.034]
[1772468712224,41.6084248,89.75,89.689,10.034]
[1772468712425,41.6084248,89.75,89.677,41.80853411]
[1772468712927,41.6084248,89.779,89.677,41.80853411]
[1772468713422,41.6084248,89.779,89.691,41.80853411]
[1772468714122,10.023,89.788,89.734,10.029]
[1772468714324,41.6084248,89.801,89.713,41.80853411]
[1772468714523,41.6084248,89.801,89.739,10.028]
[1772468714725,41.6084248,89.801,89.713,41.80853411]
[1772468714921,222.84,89.865,89.713,41.80853411]
[1772468714922,44.70336047,89.839,89.713,41.80853411]
[1772468715316,44.70336047,89.839,89.738,45.18384233]
[1772468715317,10.018,89.828,89.738,45.18384233]
[1772468715728,54.72136047,89.828,89.738,45.18384233]
[1772468715929,54.72136047,89.828,89.773,10.024]
[1772468716430,44.70336047,89.788,89.718,45.18384233]
[1772468716625,44.70336047,89.788,89.694,45.18384233]
[1772468717724,44.70336047,89.788,89.737,10.028]
[1772468717930,44.70336047,89.788,89.714,42.81404745]
[1772468718229,44.70336047,89.788,89.681,42.81404745]
[1772468719025,44.70336047,89.788,89.663,13.14470293]
[1772468719026,44.70336047,89.788,89.71,42.81404745]
[1772468720532,41.99801633,89.819,89.71,42.81404745]
[1772468720827,41.99801633,89.799,89.71,42.81404745]
[1772468721023,41.99801633,89.799,89.726,10.03]
[1772468721429,41.99801633,89.799,89.71,42.81404745]
[1772468722031,41.99801633,89.799,89.726,10.03]
[1772468722633,41.99801633,89.799,89.71,42.81404745]
[1772468722634,41.99801633,89.799,89.737,10.028]
[1772468722825,41.99801633,89.874,89.79,7.56168662]
[1772468723024,10.015,89.861,89.791,42.81404745]
[1772468723225,41.99801633,89.86,89.766,42.81404745]
[1772468723732,41.99801633,89.835,89.75,469.09487487]
[1772468724331,52.01601633,89.834,89.77,10.025]
[1772468724733,41.99801633,89.834,89.77,10.025]
[1772468725836,41.99801633,89.834,89.76,10.026]
[1772468726037,41.99801633,89.834,89.75,469.09487487]
[1772468726432,52.01601633,89.833,89.769,10.025]
[1772468726639,52.01601633,89.833,89.75,469.09487487]
[1772468726839,41.99801633,89.833,89.75,469.09487487]
[1772468727040,41.99801633,89.833,89.777,10.024]
[1772468727341,41.99801633,89.833,89.751,42.81404745]
[1772468727939,7.56168662,89.83,89.75,469.09487487]
[1772468728140,41.99801633,89.829,89.75,469.09487487]
[1772468728634,41.99801633,89.822,89.75,469.09487487]
[1772468729040,41.99801633,89.822,89.751,42.81404745]
[1772468729841,41.99801633,89.837,89.751,42.81404745]
[1772468730437,10.019,89.826,89.751,42.81404745]
[1772468730641,52.01701633,89.826,89.751,42.81404745]
[1772468731343,41.99801633,89.814,89.729,42.81404745]
[1772468731946,41.99801633,89.814,89.734,42.81404745]
[1772468732247,41.99801633,89.814,89.736,42.81404745]
[1772468732439,52.01801633,89.814,89.736,42.81404745]
[1772468732844,10.021,89.802,89.736,42.81404745]
[1772468733440,41.99801633,89.801,89.736,42.81404745]
[1772468733641,41.99801633,89.801,89.716,10.04390067]
[1772468733836,41.99801633,89.799,89.712,52.85794812]
[1772468734038,41.99801633,89.799,89.699,42.81404745]
[1772468734335,41.99801633,89.799,89.712,52.85794812]
[1772468734642,41.99801633,89.799,89.714,42.81404745]
[1772468735243,41.99801633,89.799,89.71,7.56099747]
[1772468735244,41.99801633,89.799,89.72,42.81404745]
[1772468735439,41.99801633,89.799,89.733,42.81404745]
[1772468736341,41.99801633,89.821,89.737,42.81404745]
[1772468736535,41.99801633,89.821,89.747,10.04390067]
[1772468737035,41.99801633,89.809,89.737,10.04390067]
[1772468737237,41.99801633,89.799,89.707,10.04390067]
[1772468737542,10.025,89.768,89.71,10.031]
[1772468738047,41.99801633,89.796,89.71,42.81404745]
[1772468738242,41.99801633,89.796,89.719,42.81404745]
[1772468738641,10.024,89.782,89.721,42.81404745]
[1772468739148,41.99801633,89.796,89.721,42.81404745]
[1772468739943,41.99801633,89.796,89.704,10.04390067]
[1772468740143,41.99801633,89.796,89.703,10.04390067]
[1772468740344,41.99801633,89.796,89.704,10.04390067]
[1772468740746,10.027,89.753,89.704,10.04390067]
[1772468740947,10.027,89.753,89.7,42.81404745]
[1772468741250,41.99801633,89.776,89.7,42.81404745]
[1772468741751,41.99801633,89.81,89.702,42.81404745]
[1772468742048,10.025,89.767,89.702,52.85794812]
[1772468742640,10.024,89.776,89.712,10.031]
[1772468742846,41.99801633,89.789,89.709,42.81404745]
[1772468743040,41.99801633,89.789,89.712,42.81404745]
[1772468743752,41.99801633,89.779,89.668,42.81404745]
[1772468744649,41.99801633,89.779,89.702,42.81404745]
[1772468745150,41.99801633,89.779,89.712,42.81404745]
[1772468745351,41.99801633,89.779,89.69,42.81404745]
[1772468745547,41.99801633,89.758,89.69,42.81404745]
[1772468745947,41.99801633,89.758,89.67,50.37504492]
[1772468746249,10.028,89.743,89.681,42.81404745]
[1772468746449,41.99801633,89.758,89.681,42.81404745]
[1772468746648,10.026,89.757,89.692,52.84804745]
[1772468746845,41.99801633,89.78,89.692,42.81404745]
[1772468747050,41.99801633,89.802,89.731,42.81404745]
[1772468747250,41.99801633,89.802,89.698,43.0130408]
[1772468747442,41.99801633,89.802,89.701,43.0130408]
[1772468748547,10.024,89.776,89.714,10.031]
[1772468748951,41.99801633,89.802,89.701,43.0130408]
[1772468749150,10.026,89.762,89.704,10.032]
[1772468749449,43.8493438,89.778,89.704,43.0130408]
[1772468749854,43.8493438,89.778,89.704,53.0450408]
[1772468750557,43.8493438,89.778,89.678,43.0130408]
[1772468751253,7.56099747,89.78,89.678,43.0130408]
[1772468751254,10.028,89.738,89.678,53.0480408]
[1772468751854,10.03,89.72,89.657,43.0130408]
[1772468752653,7.56099747,89.78,89.627,19.97924929]
[1772468752654,43.8493438,89.758,89.671,43.0130408]
[1772468753056,10.028,89.738,89.677,10.035]
[1772468753253,43.8493438,89.758,89.671,43.0130408]
[1772468754259,43.8493438,89.758,89.674,43.0130408]
[1772468754559,43.8493438,89.799,89.691,43.0130408]
[1772468754859,43.8493438,89.775,89.691,43.0130408]
[1772468755858,43.8493438,89.769,89.691,43.0130408]
[1772468756354,43.8493438,89.769,89.705,10.032]
[1772468757354,10.025,89.768,89.705,10.032]
[1772468758156,10.024,89.778,89.716,43.0130408]
[1772468759067,43.8493438,89.82,89.731,43.0130408]
[1772468760368,43.8493438,89.842,89.75,50.57403827]
[1772468760860,7.56099747,89.85,89.756,10.026]
[1772468760861,43.8493438,89.83,89.756,10.026]
[1772468761359,43.8493438,89.83,89.753,43.0130408]
[1772468762162,43.8493438,89.853,89.753,43.0130408]
[1772468762559,43.8493438,89.853,89.771,43.0130408]
[1772468762755,10.016,89.85,89.788,10.023]
[1772468763664,53.8653438,89.85,89.779,10.024]
[1772468764059,53.8663438,89.842,89.779,10.024]
[1772468764265,53.8663438,89.842,89.788,10.023]
[1772468764266,43.8493438,89.842,89.788,10.023]
[1772468764461,43.8493438,89.842,89.771,43.0130408]
[1772468764764,43.8493438,89.825,89.75,43.0130408]
[1772468765162,43.8493438,89.825,89.754,10.027]
[1772468765357,43.8493438,89.825,89.75,43.0130408]
[1772468765765,43.8493438,89.807,89.722,43.0130408]
[1772468766262,10.024,89.78,89.722,43.0130408]
[1772468766462,43.8493438,89.769,89.67,43.0130408]
[1772468766967,43.8493438,89.768,89.691,43.0130408]
[1772468767368,43.8493438,89.792,89.691,43.0130408]
[1772468767959,10.024,89.78,89.712,10.031]
[1772468768159,43.8493438,89.819,89.712,43.0130408]
[1772468768666,43.8493438,89.782,89.691,43.0130408]
[1772468769263,10.025,89.77,89.705,53.0450408]
[1772468769471,43.8493438,89.77,89.684,43.0130408]
[1772468770473,10.027,89.752,89.686,10.034]
[1772468770666,43.8493438,89.77,89.684,43.0130408]
[1772468770866,10.027,89.752,89.685,10.034]
[1772468771068,43.8493438,89.77,89.684,43.0130408]
[1772468771470,43.8493438,89.77,89.674,53.0480408]
[1772468771670,43.8493438,89.77,89.674,43.0130408]
[1772468771869,10.031,89.719,89.653,43.0130408]
[1772468772070,43.8493438,89.733,89.653,43.0130408]
[1772468773180,176.58983177,89.806,89.671,43.0130408]
[1772468773181,43.8493438,89.755,89.671,43.0130408]
[1772468773577,10.029,89.737,89.671,43.0130408]
[1772468773771,43.8493438,89.755,89.671,43.0130408]
[1772468773975,7.56099747,89.77,89.671,43.0130408]
[1772468773976,10.03,89.721,89.671,43.0130408]
[1772468774675,43.8493438,89.734,89.648,43.0130408]
[1772468774867,44.1486499,89.79,89.651,44.93622419]
[1772468775073,10.028,89.739,89.665,10.036]
[1772468775270,10.028,89.739,89.666,44.93622419]
[1772468775470,44.1486499,89.769,89.671,44.93622419]
[1772468775668,44.1486499,89.769,89.703,10.032]
[1772468776073,44.1486499,89.769,89.703,54.96822419]
[1772468776476,10.026,89.756,89.703,44.93622419]
[1772468776683,44.1486499,89.756,89.681,44.93622419]
[1772468777075,10.029,89.737,89.657,44.93622419]
[1772468777276,44.1486499,89.756,89.663,44.93622419]
[1772468777879,10.029,89.736,89.674,10.036]
[1772468778083,42.88510128,89.736,89.663,44.93622419]
[1772468778883,42.88510128,89.736,89.644,10.039]
[1772468779085,42.88510128,89.736,89.645,42.3002912]
[1772468779676,42.88510128,89.682,89.605,42.3002912]
[1772468779878,42.88510128,89.682,89.582,42.3002912]
[1772468780277,10.037,89.664,89.582,42.3002912]
[1772468780478,42.88510128,89.664,89.582,42.3002912]
[1772468780989,42.88510128,89.753,89.651,42.3002912]
[1772468781190,42.88510128,89.753,89.68,42.3002912]
[1772468781488,42.88510128,89.727,89.656,42.3002912]
[1772468782480,42.88510128,89.749,89.661,42.3002912]
[1772468782879,10.031,89.719,89.661,42.3002912]
[1772468783189,42.88510128,89.727,89.661,42.3002912]
[1772468783586,42.88510128,89.727,89.63,7.56099747]
[1772468783587,42.88510128,89.727,89.631,42.3002912]
[1772468784285,10.034,89.692,89.633,10.04]
[1772468784487,42.88510128,89.727,89.634,42.3002912]
[1772468785190,42.88510128,89.727,89.653,10.038]
[1772468785387,42.88510128,89.727,89.634,42.3002912]
[1772468786187,42.88510128,89.727,89.642,42.3002912]
[1772468786688,7.56099747,89.74,89.642,42.3002912]
[1772468786689,10.034,89.687,89.642,42.3002912]
[1772468786895,42.88510128,89.708,89.622,42.3002912]
[1772468787289,42.88510128,89.669,89.599,42.3002912]
[1772468787781,42.88510128,89.659,89.575,42.3002912]
[1772468787986,42.88510128,89.659,89.565,764.53203477]
[1772468788183,7.56099747,89.66,89.565,806.83232597]
[1772468788184,42.88510128,89.638,89.565,806.83232597]
[1772468788388,42.88510128,89.638,89.566,42.3002912]
[1772468788594,42.88510128,89.638,89.565,764.53203477]
[1772468788791,42.88510128,89.715,89.631,42.3002912]
[1772468789094,42.88510128,89.715,89.63,7.56099747]
[1772468789387,42.88510128,89.702,89.611,42.3002912]
[1772468789996,42.88510128,89.7,89.623,10.041]
[1772468790191,42.88510128,89.7,89.611,42.3002912]
[1772468790688,42.88510128,89.7,89.599,481.55086874]
[1772468790689,42.88510128,89.673,89.599,481.55086874]
[1772468791295,10.037,89.662,89.599,481.55086874]
[1772468791487,156.06,89.707,89.57,7.56099747]
[1772468791488,42.88510128,89.661,89.57,7.56099747]
[1772468791686,42.88510128,89.661,89.571,8.325012]
[1772468791885,10.039,89.644,89.572,8.325012]
[1772468792093,42.88510128,89.643,89.565,42.3002912]
[1772468792287,42.88510128,89.668,89.571,42.3002912]
[1772468792493,42.88510128,89.668,89.581,42.3002912]
[1772468792693,42.88510128,89.668,89.583,42.3002912]
[1772468792895,10.037,89.665,89.588,10.045]
[1772468793492,10.037,89.665,89.583,42.3002912]
[1772468793493,42.88510128,89.66,89.583,42.3002912]
[1772468793690,42.88510128,89.66,89.563,44.24233135]
[1772468793891,42.88510128,89.66,89.564,42.3002912]
[1772468794098,42.88510128,89.66,89.572,42.3002912]
[1772468794596,42.88510128,89.66,89.571,10.047]
[1772468794790,42.88510128,89.645,89.559,10.048]
[1772468794996,42.88510128,89.645,89.55,49.88692048]
[1772468794997,42.88510128,89.645,89.56,8.3140652]
[1772468795189,42.88510128,89.645,89.561,8.3133802]
[1772468795393,42.88510128,89.645,89.55,49.88692048]
[1772468795595,42.88510128,89.638,89.552,42.3002912]
[1772468796801,42.88510128,89.629,89.552,42.3002912]
[1772468797302,10.039,89.642,89.566,10.048]
[1772468797496,42.88510128,89.659,89.567,42.3002912]
[1772468797692,42.88510128,89.659,89.571,42.3002912]
[1772468797897,10.038,89.657,89.583,10.046]
[1772468798293,42.88510128,89.659,89.583,10.046]
[1772468798693,42.88510128,89.659,89.571,52.3472912]
[1772468799801,42.88510128,89.659,89.571,42.3002912]
[1772468800197,10.04,89.638,89.571,42.3002912]
[1772468800401,42.88510128,89.637,89.571,42.3002912]
[1772468800594,42.88510128,89.637,89.548,42.3002912]
[1772468801306,42.88510128,89.624,89.548,42.3002912]
[1772468801602,42.88510128,89.624,89.526,42.3002912]
[1772468801801,42.88510128,89.686,89.6,7.58662928]
[1772468802002,42.88510128,89.686,89.597,42.3002912]
[1772468802003,42.88510128,89.686,89.61,7.58662928]
[1772468802199,42.88510128,89.686,89.6,49.88692048]
[1772468802394,42.88510128,89.683,89.6,42.3002912]
[1772468802599,42.88510128,89.683,89.578,42.3002912]
[1772468802803,42.88510128,89.657,89.578,42.3002912]
[1772468803199,42.88510128,89.657,89.563,470.38252346]
[1772468803402,42.88510128,89.642,89.563,470.38252346]
[1772468803605,42.88510128,89.642,89.563,512.68281466]
[1772468803903,42.88510128,89.669,89.564,42.3002912]
[1772468804103,42.88510128,89.669,89.588,10.045]
[1772468804298,42.88510128,89.669,89.564,42.3002912]
[1772468804902,7.58662928,89.68,89.563,470.38252346]
[1772468804903,42.88510128,89.665,89.576,42.3002912]
[1772468805704,42.88510128,89.663,89.576,42.3002912]
[1772468805906,42.88510128,89.659,89.576,42.3002912]
[1772468806105,42.88510128,89.64,89.563,470.38252346]
[1772468806506,42.88510128,89.686,89.571,42.3002912]
[1772468806710,42.88510128,89.708,89.63,42.3002912]
[1772468808307,42.43538179,89.731,89.631,8.26414131]
[1772468808511,42.43538179,89.731,89.632,52.0647895]
[1772468808712,42.43538179,89.718,89.633,52.0647895]
[1772468808913,42.43538179,89.718,89.611,43.80064819]
[1772468809211,42.43538179,89.709,89.613,43.80064819]
[1772468809914,42.43538179,89.689,89.613,43.80064819]
[1772468811007,42.43538179,89.686,89.613,43.80064819]
[1772468811513,42.43538179,89.686,89.591,43.80064819]
[1772468811713,42.43538179,89.686,89.592,8.31235076]
[1772468812013,10.037,89.666,89.593,8.31235076]
[1772468812208,10.037,89.666,89.594,8.31235076]
[1772468812414,10.037,89.666,89.595,8.31235076]
[1772468812709,10.039,89.645,89.567,43.80064819]
[1772468812911,10.039,89.645,89.569,43.80064819]
[1772468813109,42.43538179,89.666,89.585,43.80064819]
[1772468813314,42.43538179,89.666,89.586,8.32429449]
[1772468813515,42.43538179,89.666,89.587,8.32429449]
[1772468813714,10.038,89.654,89.588,8.32429449]
[1772468813911,42.43538179,89.666,89.562,43.80064819]
[1772468814111,42.43538179,89.649,89.564,8.33346942]
[1772468814311,42.43538179,89.649,89.565,8.33346942]
[1772468814511,52.47638179,89.625,89.566,8.33346942]
[1772468814710,52.47638179,89.625,89.567,8.33346942]
[1772468814910,52.47638179,89.625,89.562,43.80064819]
[1772468815113,10.042,89.615,89.564,8.34068553]
[1772468815312,42.43538179,89.625,89.559,51.43264155]
[1772468815513,42.43538179,89.625,89.564,8.34134042]
[1772468815712,42.43538179,89.625,89.559,51.43264155]
[1772468815916,10.042,89.613,89.559,51.43264155]
[1772468817118,10.041,89.623,89.561,10.048]
[1772468817325,42.43538179,89.649,89.564,8.34003385]
[1772468817617,42.43538179,89.649,89.565,8.34003385]
[1772468817812,42.43538179,89.649,89.566,8.34003385]
[1772468818006,52.47538179,89.633,89.567,8.34003385]
[1772468818208,52.47538179,89.633,89.568,8.34003385]
[1772468818409,52.47538179,89.633,89.569,8.34003385]
[1772468818608,52.47538179,89.633,89.57,8.34003385]
[1772468818816,52.47538179,89.633,89.571,8.34003385]
[1772468819017,52.47538179,89.633,89.563,514.18317165]
[1772468819018,52.47538179,89.633,89.572,8.34003385]
[1772468819218,52.47538179,89.633,89.563,514.18317165]
[1772468819219,52.47538179,89.633,89.573,8.34003385]
[1772468819415,52.47538179,89.633,89.574,8.34003385]
[1772468819616,52.47538179,89.633,89.575,8.34003385]
[1772468819816,10.041,89.621,89.576,8.34003385]
[1772468820016,10.041,89.621,89.563,514.18317165]
[1772468820320,10.041,89.621,89.564,8.340441]
[1772468820521,52.47538179,89.631,89.565,18.388441]
[1772468820722,42.43538179,89.631,89.566,8.340441]
[1772468821020,42.43538179,89.631,89.575,10.047]
[1772468821219,42.43538179,89.631,89.576,8.340441]
[1772468821419,42.43538179,89.631,89.577,8.340441]
[1772468821614,42.43538179,89.631,89.578,8.340441]
[1772468821810,42.43538179,89.63,89.579,8.340441]
[1772468822009,42.43538179,89.63,89.549,9.98031011]
[1772468822218,42.43538179,89.63,89.55,8.45417662]
[1772468822418,42.43538179,89.63,89.548,9.98031011]
[1772468822419,42.43538179,89.63,89.551,8.45417662]
[1772468822618,50.02201107,89.63,89.552,8.45417662]
[1772468822818,50.02201107,89.63,89.553,8.45417662]
[1772468823018,50.02201107,89.63,89.554,8.45417662]
[1772468823316,50.02201107,89.63,89.555,8.45417662]
[1772468823521,50.02201107,89.63,89.556,8.45417662]
[1772468823717,50.02201107,89.63,89.557,8.45417662]
[1772468823922,50.02201107,89.63,89.558,8.45417662]
[1772468824124,10.043,89.608,89.559,8.45417662]
[1772468824318,10.043,89.608,89.56,8.45417662]
[1772468824520,10.043,89.608,89.561,8.45417662]
[1772468824719,10.043,89.608,89.562,8.45417662]
[1772468824920,10.044,89.601,89.563,8.45417662]
[1772468825224,50.02201107,89.63,89.545,43.80064819]
[1772468825422,50.02201107,89.63,89.547,9.98031011]
[1772468825722,50.02201107,89.63,89.548,8.4599939]
[1772468825923,42.43538179,89.609,89.549,8.4599939]
[1772468826118,42.43538179,89.609,89.538,9.98031011]
[1772468826119,42.43538179,89.609,89.529,9.98031011]
[1772468826318,42.43538179,89.609,89.53,8.46076061]
[1772468826519,42.43538179,89.588,89.531,8.46076061]
[1772468826720,42.43538179,89.588,89.532,8.46076061]
[1772468826920,42.43538179,89.588,89.533,8.46076061]
[1772468827123,42.43538179,89.588,89.534,8.46076061]
[1772468827314,42.43538179,89.588,89.535,8.46076061]
[1772468827520,42.43538179,89.588,89.505,10.10557656]
[1772468827823,42.43538179,89.599,89.511,43.80064819]
[1772468828021,42.43538179,89.599,89.514,10.10557656]
[1772468828225,10.048,89.563,89.511,43.80064819]
[1772468829024,10.047,89.572,89.511,43.80064819]
[1772468829219,42.43538179,89.576,89.511,43.80064819]
[1772468829826,42.43538179,89.576,89.513,10.10557656]
[1772468830033,42.43538179,89.576,89.511,43.80064819]
[1772468830225,42.43538179,89.576,89.504,10.10557656]
[1772468830226,10.049,89.555,89.504,10.10557656]
[1772468830430,10.049,89.555,89.493,10.10557656]
[1772468830733,10.049,89.555,89.494,10.10557656]
[1772468830927,10.048,89.564,89.503,53.90622475]
[1772468831129,42.43538179,89.601,89.519,43.80064819]
[1772468831430,42.43538179,89.601,89.531,43.80064819]
[1772468831631,42.43538179,89.601,89.536,10.10557656]
[1772468831832,42.43538179,89.601,89.531,53.90622475]
[1772468832035,42.43538179,89.601,89.531,43.80064819]
[1772468832233,42.43538179,89.601,89.53,10.10557656]
[1772468832234,42.43538179,89.601,89.521,10.10557656]
[1772468832532,42.43538179,89.601,89.516,10.10557656]
[1772468832939,10.047,89.571,89.512,53.90622475]
[1772468833130,10.047,89.571,89.512,43.80064819]
[1772468833426,42.43538179,89.582,89.513,10.054]
[1772468833427,10.048,89.564,89.513,10.054]